bitfinex/quotes_SOLUSD_20230701
["timestamp","ask_amount","ask_price","bid_price","bid_amount"]
[1688189619920,9.99999999,17.969,17.962,23.548]
[1688189620916,43.539,17.97,17.962,23.548]
[1688189628131,20.0,17.97,17.962,23.548]
[1688189628313,9.99999999,17.969,17.963,55.0]
[1688189628628,9.99999999,17.969,17.964,23.546]
[1688189629128,20.0,17.97,17.964,23.546]
[1688189631227,43.539,17.97,17.96,98.6847]
[1688189631422,9.99999999,17.969,17.96,98.6847]
[1688189631633,23.542,17.968,17.96,122.2367]
[1688189636139,23.542,17.968,17.961,55.0]
[1688189636432,23.542,17.968,17.961,78.55]
[1688189636633,20.0,17.97,17.961,78.55]
[1688189636829,33.53899999,17.971,17.961,78.55]
[1688189637029,20.0,17.969,17.961,78.55]
[1688189637943,20.0,17.97,17.961,78.55]
[1688189638437,23.539,17.971,17.961,78.55]
[1688189638631,20.0,17.97,17.961,78.55]
[1688189639243,43.539,17.97,17.961,78.55]
[1688189643245,43.539,17.97,17.96,98.6847]
[1688189643547,9.99999999,17.969,17.96,98.6847]
[1688189643842,23.544,17.967,17.96,98.6847]
[1688189644029,23.544,17.967,17.959,23.54]
[1688189644228,1.49999999,17.966,17.959,23.54]
[1688189644443,23.547,17.964,17.959,23.54]
[1688189646135,23.544,17.966,17.959,23.54]
[1688189646328,23.547,17.964,17.959,23.54]
[1688189647144,23.544,17.966,17.959,23.54]
[1688189648256,23.544,17.967,17.959,47.093]
[1688189648546,23.544,17.967,17.96,91.9]
[1688189648927,23.544,17.967,17.96,115.451]
[1688189649435,23.541,17.969,17.96,115.451]
[1688189649639,1.49999999,17.968,17.96,115.451]
[1688189649831,25.04099999,17.968,17.96,115.451]
[1688189650031,23.541,17.968,17.96,115.451]
[1688189650245,20.0,17.97,17.96,115.451]
[1688189650447,20.0,17.969,17.96,176.085]
[1688189650637,23.539,17.97,17.96,115.451]
[1688189650836,29.99999999,17.969,17.96,115.451]
[1688189651338,20.0,17.969,17.96,115.451]
[1688189653628,43.541,17.969,17.96,115.451]
[1688189660854,43.541,17.969,17.96,91.9]
[1688189661064,9.99999999,17.968,17.96,91.9]
[1688189661243,23.544,17.966,17.96,91.9]
[1688189661554,1.49999999,17.967,17.959,23.54]
[1688189662339,23.544,17.966,17.959,23.54]
[1688189662663,1.49999999,17.965,17.959,23.54]
[1688189662844,23.548,17.964,17.959,23.54]
[1688189666548,23.548,17.964,17.957,91.9842]
[1688189666865,23.548,17.964,17.958,55.0]
[1688189667069,23.548,17.964,17.957,55.0]
[1688189667763,23.548,17.964,17.957,78.548]
[1688189669850,23.548,17.964,17.957,102.103]
[1688189670049,23.545,17.966,17.957,102.103]
[1688189670252,1.49999999,17.965,17.957,102.103]
[1688189670452,25.04499999,17.965,17.957,102.103]
[1688189672467,1.49999999,17.965,17.957,102.103]
[1688189672654,25.04399999,17.966,17.957,102.103]
[1688189677673,25.04399999,17.966,17.957,78.548]
[1688189680975,25.04399999,17.966,17.957,102.104]
[1688189684880,1.49999999,17.966,17.957,102.104]
[1688189685073,1.49999999,17.968,17.957,102.104]
[1688189685275,25.04099999,17.968,17.957,102.104]
[1688189688173,1.49999999,17.968,17.957,102.104]
[1688189688380,1.49999999,17.968,17.957,112.94119922]
[1688189688570,1.49999999,17.968,17.958,95.7509]
[1688189688771,1.49999999,17.968,17.961,23.551]
[1688189688967,1.49999999,17.968,17.962,55.0]
[1688189689764,43.54,17.969,17.962,55.0]
[1688189690278,43.54,17.969,17.962,78.549]
[1688189692873,20.0,17.969,17.962,78.549]
[1688189693481,43.541,17.969,17.962,78.549]
[1688189694286,20.0,17.969,17.962,78.549]
[1688189694482,9.99999999,17.975,17.962,78.549]
[1688189694680,23.539,17.97,17.963,96.067]
[1688189694982,23.539,17.971,17.964,55.0]
[1688189696370,23.539,17.971,17.964,78.546]
[1688189698183,36.74,17.98,17.964,23.546]
[1688189698372,23.535,17.973,17.964,23.546]
[1688189698577,23.535,17.973,17.961,96.067]
[1688189698971,9.99999999,17.972,17.961,96.067]
[1688189699286,23.539,17.97,17.962,23.548]
[1688189700691,23.539,17.97,17.963,55.0]
[1688189701288,23.539,17.97,17.963,78.548]
[1688189702789,23.539,17.97,17.96,36.78]
[1688189702990,20.0,17.969,17.96,23.552]
[1688189703188,23.543,17.967,17.96,23.552]
[1688189703975,23.543,17.967,17.958,23.553]
[1688189704275,9.99999999,17.966,17.959,55.0]
[1688189704475,33.54399999,17.966,17.959,55.0]
[1688189704679,23.544,17.966,17.959,55.0]
[1688189708398,23.544,17.966,17.958,55.0]
[1688189708600,9.99999999,17.965,17.958,55.0]
[1688189708784,23.548,17.963,17.958,55.0]
[1688189713606,23.548,17.963,17.957,23.548]
[1688189714097,9.99999999,17.962,17.951,10.83719922]
[1688189714402,23.554,17.959,17.951,34.40119922]
[1688189714805,23.554,17.959,17.951,57.95519922]
[1688189715000,23.554,17.959,17.952,55.0]
[1688189715307,23.554,17.959,17.952,78.562]
[1688189715482,23.554,17.959,17.952,55.0]
[1688189715883,23.554,17.959,17.951,23.554]
[1688189716085,23.554,17.959,17.94,36.78]
[1688189716293,55.0,17.958,17.941,30.0]
[1688189716588,84.219,17.953,17.941,53.576]
[1688189716785,23.561,17.953,17.941,71.19319922]
[1688189717488,23.561,17.953,17.942,55.0]
[1688189717689,23.561,17.953,17.941,71.19319922]
[1688189717903,110.671,17.955,17.941,71.19319922]
[1688189718202,301.81450849,17.977,17.941,71.19319922]
[1688189718203,1.49999999,17.97,17.96,23.551]
[1688189718416,1.49999999,17.97,17.96,60.451]
[1688189718708,61.77899999,17.97,17.96,23.551]
[1688189719289,1.49999999,17.97,17.96,23.551]
[1688189719499,9.99999999,17.976,17.961,55.0]
[1688189719699,9.99999999,17.976,17.964,23.546]
[1688189719901,9.99999999,17.977,17.964,23.546]
[1688189721097,55.0,17.976,17.964,23.546]
[1688189721399,9.99999999,17.975,17.964,23.546]
[1688189721794,9.99999999,17.979,17.964,23.546]
[1688189722997,55.0,17.978,17.964,23.546]
[1688189723308,9.99999999,17.977,17.964,23.546]
[1688189723509,55.0,17.976,17.964,23.546]
[1688189723808,23.534,17.974,17.964,23.546]
[1688189724007,9.99999999,17.973,17.964,23.546]
[1688189724518,9.99999999,17.975,17.964,23.546]
[1688189725297,9.99999999,17.975,17.965,55.0]
[1688189725599,36.63,17.98,17.968,23.541]
[1688189725600,33.52999999,17.977,17.968,23.541]
[1688189728115,9.99999999,17.977,17.968,23.541]
[1688189729498,23.529,17.978,17.968,23.541]
[1688189730415,9.99999999,17.983,17.968,23.541]
[1688189730615,75.0,17.982,17.968,23.541]
[1688189730923,9.99999999,17.981,17.968,23.541]
[1688189731101,20.0,17.98,17.969,55.0]
[1688189731405,33.52699999,17.979,17.972,23.536]
[1688189732320,33.52699999,17.979,17.97,57.00248004]
[1688189732616,33.52699999,17.979,17.97,23.538]
[1688189736810,55.0,17.978,17.964,158.5146]
[1688189737125,23.533,17.975,17.967,23.542]
[1688189737716,10.06251995,17.979,17.967,23.542]
[1688189737934,10.06251995,17.979,17.967,47.075]
[1688189738225,33.58951995,17.979,17.97,23.537]
[1688189740916,33.58951995,17.979,17.969,23.54]
[1688189741115,33.58951995,17.979,17.97,55.0]
[1688189742330,33.58951995,17.979,17.967,47.075]
[1688189742523,33.58951995,17.979,17.968,55.0]
[1688189744431,33.58951995,17.979,17.968,78.541]
[1688189751139,33.58951995,17.979,17.968,55.0]
[1688189751435,33.58951995,17.979,17.967,47.075]
[1688189756036,33.58951995,17.979,17.968,55.0]
[1688189756333,33.58951995,17.979,17.968,78.541]
[1688189758537,33.58951995,17.979,17.968,55.0]
[1688189759530,33.58951995,17.979,17.968,78.541]
[1688189761734,33.58951995,17.979,17.968,23.541]
[1688189761942,75.0,17.978,17.955,60.648]
[1688189762230,23.537,17.972,17.961,23.55]
[1688189762434,23.541,17.968,17.961,23.55]
[1688189762625,23.541,17.968,17.959,94.2912]
[1688189762936,10.06251995,17.967,17.959,94.2912]
[1688189763142,23.545,17.966,17.959,117.8442]
[1688189764021,10.06251995,17.97,17.959,117.8442]
[1688189764236,43.541,17.969,17.96,55.0]
[1688189764434,10.06251995,17.968,17.961,23.55]
[1688189764737,33.60451995,17.968,17.961,23.55]
[1688189764929,23.542,17.968,17.961,23.55]
[1688189766433,23.542,17.968,17.959,94.2912]
[1688189766619,10.06251995,17.967,17.955,23.557]
[1688189766822,10.06251995,17.967,17.942,71.29294]
[1688189766823,23.547,17.964,17.95,23.564]
[1688189767146,23.547,17.964,17.951,23.542]
[1688189767147,30.06251995,17.963,17.951,23.542]
[1688189767438,10.06251995,17.959,17.949,92.6834]
[1688189767736,23.557,17.956,17.949,92.6834]
[1688189768037,23.557,17.956,17.948,23.567]
[1688189768633,23.557,17.956,17.949,55.0]
[1688189768834,23.557,17.956,17.949,78.565]
[1688189769030,23.557,17.956,17.949,102.122]
[1688189769741,23.555,17.958,17.949,102.122]
[1688189771925,23.555,17.958,17.949,78.557]
[1688189772125,23.555,17.958,17.949,23.557]
[1688189773541,23.555,17.958,17.95,55.0]
[1688189777157,23.555,17.958,17.95,78.565]
[1688189777642,23.555,17.958,17.95,55.0]
[1688189779445,23.555,17.958,17.95,78.564]
[1688189790838,23.555,17.958,17.95,115.534]
[1688189792045,23.555,17.958,17.949,23.557]
[1688189792355,23.555,17.958,17.949,47.122]
[1688189792555,23.555,17.958,17.949,23.557]
[1688189793852,23.555,17.958,17.949,47.123]
[1688189794154,23.555,17.958,17.95,78.564]
[1688189794350,60.523,17.96,17.95,78.564]
[1688189794552,20.0,17.959,17.95,78.564]
[1688189794946,43.554,17.959,17.95,78.564]
[1688189795652,23.554,17.959,17.95,78.564]
[1688189795854,1.56251995,17.961,17.95,187.03919922]
[1688189796056,1.56251995,17.967,17.95,187.03919922]
[1688189796262,1.56251995,17.969,17.951,91.8284]
[1688189796564,1.56251995,17.969,17.956,84.204]
[1688189796742,25.10251995,17.969,17.96,23.551]
[1688189801059,23.54,17.969,17.96,23.551]
[1688189803557,10.06251995,17.968,17.96,23.551]
[1688189808955,33.60451995,17.968,17.96,23.551]
[1688189809157,23.542,17.968,17.96,23.551]
[1688189811069,23.542,17.968,17.96,47.08824]
[1688189813172,23.542,17.968,17.96,23.53724]
[1688189813467,10.06251995,17.967,17.96,23.53724]
[1688189813671,23.545,17.965,17.96,23.53724]
[1688189816283,10.06251995,17.968,17.96,23.53724]
[1688189816284,23.544,17.967,17.96,23.53724]
[1688189816485,10.06251995,17.966,17.96,23.53724]
[1688189817190,33.60651995,17.966,17.96,23.53724]
[1688189817366,23.544,17.966,17.96,23.53724]
[1688189819192,23.544,17.966,17.96,47.08924]
[1688189819590,23.542,17.968,17.96,47.08924]
[1688189819797,10.06251995,17.967,17.96,47.08924]
[1688189821482,23.543,17.967,17.96,47.08924]
[1688189821675,23.543,17.967,17.96,23.53724]
[1688189825000,33.60351995,17.969,17.96,47.08824]
[1688189825378,33.60351995,17.969,17.96,23.53724]
[1688189831284,60.99396129,17.969,17.96,23.53724]
[1688189832104,60.99396129,17.969,17.96,47.08824]
[1688189837307,60.99396129,17.969,17.96,23.53724]
[1688189840494,60.99396129,17.969,17.96,47.08924]
[1688189843101,60.99396129,17.969,17.96,23.53724]
[1688189848711,33.60351995,17.969,17.96,47.08824]
[1688189849702,33.60351995,17.969,17.961,55.0]
[1688189849897,23.541,17.969,17.96,23.53724]
[1688189850101,10.06251995,17.968,17.96,47.08924]
[1688189850313,23.543,17.967,17.96,47.08924]
[1688189851320,23.543,17.967,17.96,23.53724]
[1688189856822,23.043,17.967,17.96,23.53724]
[1688189859710,10.06251995,17.972,17.96,47.08824]
[1688189859917,23.54,17.969,17.961,55.0]
[1688189860235,10.06251995,17.968,17.962,23.549]
[1688189860527,23.54,17.969,17.962,23.549]
[1688189862335,23.54,17.969,17.961,55.0]
[1688189862538,23.54,17.969,17.961,78.55]
[1688189866942,10.06251995,17.972,17.961,78.55]
[1688189867137,20.0,17.971,17.961,78.55]
[1688189867336,20.0,17.971,17.961,174.4345]
[1688189867926,10.06251995,17.97,17.961,174.4345]
[1688189868144,20.0,17.969,17.961,174.4345]
[1688189868936,43.54,17.969,17.961,174.4345]
[1688189873445,23.539,17.971,17.961,78.55]
[1688189873646,10.06251995,17.976,17.961,78.55]
[1688189873945,10.06251995,17.981,17.962,10.83719922]
[1688189874131,23.532,17.976,17.967,23.542]
[1688189874332,10.06251995,17.975,17.967,23.542]
[1688189874532,33.59551995,17.975,17.968,55.0]
[1688189874953,23.533,17.975,17.968,55.0]
[1688189875250,23.533,17.975,17.968,78.541]
[1688189875634,23.533,17.975,17.968,102.074]
[1688189877038,23.533,17.975,17.969,23.525451]
[1688189877235,23.533,17.975,17.97,55.0]
[1688189877437,23.53,17.977,17.97,55.0]
[1688189879151,23.53,17.977,17.97,78.539]
[1688189880530,23.53,17.977,17.969,23.525451]
[1688189880848,10.06251995,17.976,17.969,23.525451]
[1688189881044,23.534,17.974,17.969,23.525451]
[1688189885362,23.532,17.976,17.969,23.525451]
[1688189885654,10.06251995,17.975,17.969,23.525451]
[1688189885855,10.06251995,17.975,17.969,47.065451]
[1688189886057,23.53,17.977,17.969,47.065451]
[1688189886358,10.06251995,17.976,17.969,47.065451]
[1688189888059,23.531,17.976,17.969,23.525451]
[1688189888262,75.0,17.975,17.969,23.525451]
[1688189888562,10.06251995,17.973,17.969,23.525451]
[1688189888761,10.06251995,17.973,17.96,47.08824]
[1688189888762,78.0,17.972,17.96,23.53724]
[1688189888958,194.73,17.969,17.95,23.564]
[1688189889158,194.73,17.969,17.94,36.93]
[1688189889159,154.45915449,17.968,17.948,23.567]
[1688189889358,36.87,17.96,17.948,23.567]
[1688189889668,23.557,17.957,17.948,23.567]
[1688189890460,23.557,17.957,17.95,23.565]
[1688189896266,36.87,17.96,17.95,23.565]
[1688189896569,43.554,17.959,17.95,23.565]
[1688189896768,43.554,17.959,17.951,55.0]
[1688189896971,43.554,17.959,17.952,23.562]
[1688189901869,20.0,17.959,17.952,23.562]
[1688189902067,20.0,17.961,17.953,55.0]
[1688189902269,20.0,17.962,17.953,55.0]
[1688189902563,23.53723999,17.961,17.953,55.0]
[1688189902765,23.554,17.959,17.953,55.0]
[1688189908581,23.554,17.959,17.95,36.93]
[1688189908767,23.554,17.959,17.951,55.0]
[1688189919708,23.554,17.959,17.951,78.564]
[1688189922790,23.554,17.959,17.951,55.0]
[1688189926501,23.554,17.959,17.951,78.563]
[1688189927796,20.00594269,17.961,17.951,260.75519922]
[1688189928094,398.5,17.974,17.951,260.75519922]
[1688189928095,23.543,17.967,17.952,12.88576]
[1688189928400,35.92315862,17.966,17.96,60.481]
[1688189928589,96.51615862,17.973,17.961,55.0]
[1688189928902,23.54,17.97,17.961,78.55]
[1688189929193,59.46415862,17.969,17.961,78.55]
[1688189929393,23.541,17.969,17.961,78.55]
[1688189930584,23.541,17.969,17.961,55.0]
[1688189932699,23.544,17.966,17.961,55.0]
[1688189936207,23.543,17.968,17.961,55.0]
[1688189936503,59.46315862,17.97,17.961,78.55]
[1688189936694,20.0,17.969,17.961,78.55]
[1688189937304,43.541,17.969,17.961,78.55]
[1688189940303,20.0,17.969,17.961,78.55]
[1688189940491,20.0,17.973,17.961,78.55]
[1688189940690,35.92315862,17.972,17.961,78.55]
[1688189940892,20.0,17.971,17.961,78.55]
[1688189941288,23.539,17.97,17.961,55.0]
[1688189941488,55.92315862,17.969,17.961,55.0]
[1688189941799,23.543,17.967,17.961,55.0]
[1688189944705,43.541,17.969,17.961,78.55]
[1688189944898,21.72281742,17.968,17.961,78.55]
[1688189945298,45.26381742,17.968,17.961,78.55]
[1688189945500,23.541,17.968,17.961,78.55]
[1688189945695,23.541,17.968,17.961,55.0]
[1688189951812,23.541,17.968,17.961,78.55]
[1688189952200,23.541,17.968,17.961,55.0]
[1688189956998,21.72281742,17.967,17.961,55.0]
[1688189957198,23.545,17.966,17.961,55.0]
[1688189957702,21.72281742,17.965,17.96,60.593]
[1688189958016,23.547,17.964,17.958,94.2042]
[1688189958314,23.546,17.965,17.958,117.7582]
[1688189958912,23.546,17.965,17.959,55.0]
[1688189959815,23.546,17.965,17.959,78.553]
[1688189960915,23.544,17.967,17.959,78.553]
[1688189961214,45.74047724,17.966,17.959,78.553]
[1688189961617,23.544,17.966,17.959,78.553]
[1688189971022,23.544,17.966,17.957,23.546]
[1688189971214,98.53723999,17.965,17.952,12.88576]
[1688189971523,36.93,17.96,17.952,12.88576]
[1688189971705,23.555,17.958,17.952,12.88576]
[1688189972020,23.555,17.958,17.95,23.569]
[1688189972521,23.555,17.958,17.945,115.9885]
[1688189972919,23.555,17.958,17.945,176.6265]
[1688189974610,23.555,17.958,17.946,55.0]
[1688189974809,23.555,17.958,17.947,23.568]
[1688189975008,23.555,17.958,17.948,55.0]
[1688189975523,23.555,17.958,17.948,78.567]
[1688189978519,23.555,17.958,17.947,23.568]
[1688189978731,18.18253862,17.957,17.945,153.0555]
[1688189978907,23.56,17.954,17.946,55.0]
[1688189979911,23.56,17.954,17.946,78.569]
[1688189982929,23.558,17.956,17.946,78.569]
[1688189983125,18.18253862,17.955,17.946,78.569]
[1688189984734,41.74153862,17.955,17.946,78.569]
[1688189985033,23.559,17.955,17.946,78.569]
[1688189986324,23.559,17.955,17.946,55.0]
[1688189986526,23.559,17.955,17.945,176.6265]
[1688189986727,18.18253862,17.954,17.945,176.6265]
[1688189986928,23.562,17.953,17.945,176.6265]
[1688189987331,23.56,17.955,17.945,176.6265]
[1688189987535,18.18253862,17.954,17.946,55.0]
[1688189987832,23.56,17.954,17.946,78.569]
[1688189992540,23.56,17.954,17.946,23.569]
[1688189993341,23.56,17.954,17.945,176.6265]
[1688189995330,23.559,17.955,17.946,55.0]
[1688189995630,18.18253862,17.954,17.947,23.568]
[1688189995833,23.559,17.955,17.947,23.568]
[1688189997045,18.18253862,17.954,17.947,23.568]
[1688189997240,41.74353862,17.954,17.947,23.568]
[1688189997436,23.561,17.954,17.947,23.568]
[1688189997636,23.561,17.954,17.945,176.6255]
[1688189999250,23.558,17.956,17.945,176.6255]
[1688189999436,18.18253862,17.955,17.945,176.6255]
[1688189999837,18.18253862,17.955,17.946,55.0]
[1688190000151,18.18253862,17.955,17.948,23.567]
[1688190001450,18.18253862,17.955,17.942,27.18377955]
[1688190001451,20.0,17.954,17.942,27.18377955]
[1688190001640,36.87,17.95,17.943,23.573]
[1688190001954,20.0,17.949,17.942,41.741538]
[1688190002259,43.567,17.949,17.942,65.316538]
[1688190002450,18.18253862,17.948,17.942,65.316538]
[1688190003055,41.75053862,17.948,17.942,65.316538]
[1688190003348,23.568,17.948,17.942,65.316538]
[1688190003550,18.18253862,17.947,17.942,41.741538]
[1688190005147,23.568,17.948,17.942,41.741538]
[1688190006650,18.18253862,17.947,17.942,41.741538]
[1688190006951,41.75153862,17.947,17.942,41.741538]
[1688190007344,23.569,17.947,17.942,41.741538]
[1688190008450,23.569,17.947,17.939,23.578]
[1688190008655,23.569,17.947,17.94,55.0]
[1688190012039,23.569,17.947,17.939,23.569]
[1688190015053,23.569,17.947,17.938,28.0374444]
[1688190015256,23.569,17.947,17.924,110.853]
[1688190015257,20.0,17.946,17.92,36.77]
[1688190015455,84.288,17.939,17.925,98.6402]
[1688190015645,84.288,17.939,17.923,23.599]
[1688190015841,10.83719922,17.938,17.923,23.599]
[1688190016046,23.587,17.934,17.923,122.2392]
[1688190016244,36.87,17.93,17.923,98.6402]
[1688190016545,23.594,17.928,17.912,91.18]
[1688190016745,23.594,17.928,17.916,23.609]
[1688190017542,23.594,17.928,17.92,36.93]
[1688190017742,60.73,17.932,17.92,36.93]
[1688190017743,23.59,17.932,17.92,60.534]
[1688190017958,171.481,17.938,17.92,60.534]
[1688190017959,60.71,17.938,17.92,60.534]
[1688190018257,171.445,17.942,17.921,12.90805]
[1688190018463,23.581,17.938,17.927,23.595]
[1688190018663,36.93,17.95,17.93,36.77]
[1688190018844,4.99999999,17.949,17.936,23.583]
[1688190019160,23.572,17.946,17.938,23.581]
[1688190019860,23.572,17.946,17.938,23.58]
[1688190020269,23.57,17.947,17.938,23.58]
[1688190020447,23.569,17.947,17.939,55.0]
[1688190020646,23.569,17.947,17.939,23.579]
[1688190021054,23.569,17.947,17.939,60.509]
[1688190021352,23.569,17.947,17.936,23.583]
[1688190023357,23.569,17.947,17.937,55.0]
[1688190023555,23.569,17.947,17.94,23.578]
[1688190024771,23.565,17.951,17.943,23.574]
[1688190024968,4.99999999,17.954,17.943,23.574]
[1688190024969,23.562,17.953,17.943,23.574]
[1688190025147,37.02,17.96,17.947,23.569]
[1688190025348,23.558,17.956,17.948,78.567]
[1688190025549,23.558,17.956,17.948,23.567]
[1688190029673,23.558,17.956,17.947,23.558]
[1688190029855,4.99999999,17.955,17.944,121.4512]
[1688190030051,23.563,17.952,17.944,121.4512]
[1688190031068,23.563,17.952,17.944,182.1012]
[1688190032068,23.563,17.952,17.944,158.5292]
[1688190032475,23.562,17.953,17.945,55.0]
[1688190033170,23.562,17.953,17.945,78.571]
[1688190035669,80.639,17.959,17.945,78.571]
[1688190035870,4.99999999,17.958,17.945,78.571]
[1688190036776,23.558,17.955,17.945,78.571]
[1688190037280,91.47619922,17.959,17.945,78.571]
[1688190037281,23.558,17.956,17.945,78.571]
[1688190045295,23.558,17.956,17.945,23.571]
[1688190045587,23.558,17.956,17.944,60.65]
[1688190045783,90.83719921,17.955,17.93,36.85]
[1688190045992,23.568,17.948,17.932,91.9158]
[1688190046284,23.572,17.945,17.937,23.582]
[1688190047786,23.572,17.945,17.936,30.837199]
[1688190048883,23.572,17.945,17.936,54.419199]
[1688190052882,37.02,17.95,17.936,54.419199]
[1688190053074,24.99999999,17.949,17.936,54.419199]
[1688190053270,48.56699999,17.949,17.936,54.419199]
[1688190060884,48.56699999,17.949,17.937,55.0]
[1688190061191,48.56699999,17.949,17.938,23.58]
[1688190061892,48.56699999,17.949,17.939,55.0]
[1688190062095,48.56699999,17.949,17.939,78.579]
[1688190064902,48.56699999,17.949,17.937,23.581]
[1688190065097,48.56699999,17.949,17.936,30.837199]
[1688190065098,55.0,17.948,17.936,30.837199]
[1688190065304,23.572,17.945,17.933,23.586]
[1688190066190,20.0,17.944,17.932,152.5998]
[1688190066500,23.578,17.941,17.932,91.9158]
[1688190066703,23.58,17.939,17.932,115.5038]
[1688190066884,23.578,17.941,17.932,115.5038]
[1688190067081,20.0,17.94,17.932,115.5038]
[1688190067485,20.0,17.94,17.933,55.0]
[1688190067703,20.0,17.94,17.933,78.586]
[1688190068402,43.579,17.94,17.933,78.586]
[1688190069000,23.579,17.94,17.933,78.586]
[1688190069499,20.0,17.939,17.933,78.586]
[1688190070201,43.58,17.939,17.933,78.586]
[1688190070806,43.58,17.939,17.933,55.0]
[1688190072306,28.51352553,17.953,17.933,78.587]
[1688190072492,60.679,17.947,17.933,78.587]
[1688190072693,23.574,17.944,17.933,78.587]
[1688190073006,4.99999999,17.957,17.934,499.3]
[1688190073216,110.625,17.962,17.945,23.571]
[1688190073384,23.556,17.957,17.945,23.571]
[1688190073584,23.556,17.957,17.947,23.568]
[1688190073793,23.556,17.957,17.948,78.568]
[1688190074000,23.556,17.957,17.949,55.0]
[1688190074189,23.556,17.957,17.949,78.566]
[1688190074395,23.554,17.959,17.949,78.566]
[1688190075403,23.554,17.959,17.949,23.566]
[1688190075606,23.554,17.959,17.951,23.564]
[1688190075786,23.554,17.959,17.952,55.0]
[1688190077808,23.554,17.959,17.947,60.633]
[1688190078009,23.554,17.959,17.948,55.0]
[1688190078903,23.554,17.959,17.951,23.564]
[1688190079106,110.599,17.966,17.954,23.559]
[1688190079107,24.96712151,17.964,17.954,23.559]
[1688190079307,60.618,17.965,17.955,55.0]
[1688190079507,23.546,17.965,17.955,78.558]
[1688190081402,110.571,17.971,17.955,78.558]
[1688190081608,47.17075017,17.97,17.955,78.558]
[1688190082910,23.544,17.966,17.955,78.558]
[1688190085212,23.543,17.967,17.955,78.558]
[1688190087015,20.0,17.97,17.955,78.558]
[1688190087314,23.539,17.97,17.96,23.552]
[1688190087495,23.539,17.97,17.962,23.548]
[1688190087701,20.0,17.969,17.963,55.0]
[1688190088409,43.54,17.969,17.963,55.0]
[1688190089613,43.54,17.969,17.962,78.549]
[1688190094116,43.54,17.969,17.961,55.0]
[1688190094309,43.54,17.969,17.958,94.7692]
[1688190094496,20.50991649,17.968,17.958,94.7692]
[1688190094701,23.545,17.965,17.958,94.7692]
[1688190095312,23.545,17.965,17.958,118.3232]
[1688190096113,23.545,17.966,17.959,55.0]
[1688190096309,23.545,17.966,17.959,78.553]
[1688190098407,23.545,17.966,17.958,94.7692]
[1688190102029,23.545,17.966,17.958,118.3232]
[1688190105429,20.0,17.969,17.959,55.0]
[1688190105624,23.542,17.968,17.959,55.0]